[Event "Fagernes Chess GM-Swiss 2024"]
[Site "Fagernes"]
[Date "2024.03.25"]
[Round "2"]
[White "Tsolakidou, Stavroula"]
[Black "Jumabayev, Rinat"]
[Result "0-1"]
[ECO "B95"]
[WhiteElo "2424"]
[BlackElo "2598"]
[Annotator "TA"]
[PlyCount "130"]
[EventDate "2024.03.25"]
[EventType "swiss"]
[EventCountry "NOR"]
[SourceTitle "playchess.com"]
[Source "ChessBase"]
[SourceQuality "1"]
[TimeControl "40/6000+30:2400+30"]

{[%evp 38,130,-59,-122,-71,-83,-67,-93,-45,-44,-56,-60,-68,-96,-81,-87,-89,-109,-98,-98,-83,-97,-100,-124,-101,-106,-70,-123,-116,-144,-156,-150,-105,-178,-186,-172,-128,-141,-111,-108,-112,-174,-152,-168,-47,-51,-58,-91,-94,-133,-133,-166,-120,-192,-184,-225,-220,-220,-220,-220,-220,-232,-239,-232,-185,-187,-173,-166,-166,-166,-171,-308,-305,-302,-308,-250,-175,-762,-408,-779,-777,-1180,-912,-1391,-1434,-1434,-1434,-1376,-1359,-832,-321,-1114,-1111,-521,-521]} 1. e4 {[%emt 0:00:06]} c5 {[%emt 0:00:31]} 2. Nf3 {[%emt 0:00:09]} d6 {[%emt 0:00:06]} 3. d4 {[%emt 0:00:10]} cxd4 {[%emt 0:00:09]} 4. Nxd4 {[%emt 0:00:08]} Nf6 {[%emt 0:00:03]} 5. Nc3 {[%emt 0:00:07]} a6 {[%emt 0:00:39]} 6. Bg5 {[%emt 0:03:40]} e6 {[%emt 0:04:50]} 7. Qf3 {[%emt 0:01:01]} h6 {[%emt 0:07:54] B95: Sizilianisch (Najdorf-Variante mit 6.Lg5).} 8. Bd2 {[%emt 0:06:52] ist inzwischen erfolgreicher als 8.Be3.} Qb6 {[%emt 0:06:48]} 9. Nb3 {[%emt 0:03:00]} Qc7 {[%emt 0:00:24]} 10. O-O-O {[%emt 0:13:59]} Nbd7 {[%emt 0:02:54]} 11. g4 $146 {[%emt 0:11:13]} ({Predecessor:} 11. Qg3 b5 12. a3 Bb7 13. Bd3 h5 14. f4 Rc8 15. Kb1 Be7 16. Rhe1 h4 17. Qh3 {0-1 Chinchilla,A (2145)-Quesada Perez,L (2520) Central America-ch 24th 2023 (4)}) 11... b5 {[%emt 0:00:55]} 12. a3 {[%emt 0:09:17]} Bb7 {[%emt 0:01:29]} 13. Bg2 {[%emt 0:06:31]} Rc8 {[%emt 0:11:23]} 14. Qe2 {[%emt 0:07:05]} d5 {[%emt 0:08:40]} 15. exd5 {[%emt 0:16:54]} Nxd5 {[%emt 0:00:19]} 16. Rhg1 {[%emt 0:03:33]} N7b6 {[%emt 0:13:33]} 17. Nd4 {[%emt 0:02:46]} Be7 {[%emt 0:09:45]} 18. Nxd5 {[%emt 0:03:46]} Nxd5 {[%emt 0:07:51]} 19. Bxd5 {[%emt 0:11:37]} Bxd5 {[%emt 0:01:18]} 20. f4 {[%emt 0:00:15]} (20. Bb4 $15) 20... Bf6 {[%emt 0:04:39]} (20... Bc5 $142 21. Be3 O-O) 21. Be3 $17 {[%emt 0:01:00]} Be4 {[%emt 0:01:42]} (21... Qb7 {vereinfacht} 22. c3 Be7 23. Kb1 Rc4) 22. Rd2 {[%emt 0:03:37]} Qc4 {[%emt 0:05:56]} (22... Qb7 $17) 23. Qxc4 $15 {[%emt 0:00:59]} Rxc4 {[%emt 0:00:18]} 24. Ne2 {[%emt 0:00:43]} O-O {[%emt 0:03:15]} 25. Bd4 {[%emt 0:00:52]} Be7 {[%emt 0:00:56]} 26. Rg3 {[%emt 0:03:01]} Rfc8 {[%emt 0:04:11]} 27. c3 {[%emt 0:00:28]} a5 {[%emt 0:03:20]} 28. Kd1 {[%emt 0:00:05]} b4 {[%emt 0:02:15]} 29. axb4 {[%emt 0:00:13]} axb4 {[%emt 0:00:04]} 30. cxb4 {[%emt 0:00:24]} Bxb4 {[%emt 0:00:50]} 31. Bc3 {[%emt 0:00:41]} Ra8 {[%emt 0:01:54]} 32. Rd4 {[%emt 0:00:49]} (32. b3 $1 $15 Rcc8 33. Bxb4 Ra1+ 34. Nc1 Rcxc1+ (34... Raxc1+ 35. Ke2 $17) 35. Ke2) 32... Rxd4+ $17 {[%emt 0:02:02]} 33. Nxd4 {[%emt 0:00:05]} Bd6 {[%emt 0:00:06]} 34. Ne2 {[%emt 0:01:02]} Bc5 {[%emt 0:02:53]} 35. Ke1 {[%emt 0:01:14]} (35. Nc1 $17) 35... Ra1+ $19 {[%emt 0:01:46]} 36. Kd2 {[%emt 0:00:05]} Rh1 {[%emt 0:00:21]} 37. g5 {[%emt 0:00:43]} Rxh2 {[%emt 0:02:22]} 38. gxh6 {[%emt 0:00:12]} g6 $1 {[%emt 0:00:13]} ({Minderwertig wäre} 38... Rxh6 39. Rxg7+ (39. Bxg7 Rh5 $11) 39... Kf8 40. Rg5 $16) 39. Bg7 {[%emt 0:00:42]} (39. Be5 $17) 39... Bd5 {[%emt 0:00:26]} 40. Rd3 {[%emt 0:00:45]} Bf8 {[%emt 0:00:50]} ({Besser ist} 40... Kh7 $19 {...Bc4 wäre nun fies.} 41. b3 Bb4+ 42. Ke3 Be1) 41. Bxf8 $15 {[%emt 0:04:35]} Kxf8 {[%emt 0:00:42]} 42. b3 {[%emt 0:07:56]} Ke7 {[%emt 0:05:39]} 43. Re3 {[%emt 0:00:00]} Rxh6 {[%emt 0:03:56]} 44. Kc3 {[%emt 0:00:41]} Rh8 {[%emt 0:02:05]} ({Günstiger ist} 44... Rh4 $19 45. b4 Rh1) 45. Nd4 {[%emt 0:00:37]} (45. Nc1 $17 {kämpft weiter.}) 45... Kd6 {[%emt 0:01:24]} 46. Kd2 {[%emt 0:09:21]} Rh4 {[%emt 0:04:14]} 47. Ne2 {[%emt 0:00:15]} Bb7 {[%emt 0:01:36]} 48. Rd3+ {[%emt 0:04:14]} Ke7 {[%emt 0:00:45]} 49. Rd4 {[%emt 0:01:19] [#]} Bf3 $1 {[%emt 0:00:42]} 50. Ng1 {[%emt 0:00:37]} Bh5 {[%emt 0:18:24]} 51. Ke3 {[%emt 0:04:20]} Rh1 {[%emt 0:01:22]} 52. Kf2 {[%emt 0:00:20]} Rh2+ {[%emt 0:00:48]} 53. Kg3 {[%emt 0:00:07]} Rb2 {[%emt 0:00:16]} 54. b4 {[%emt 0:00:16]} (54. Rd3 {ist wohl besser.}) 54... Rb3+ $19 {[%emt 0:01:06]} 55. Kg2 {[%emt 0:02:24]} Bg4 {[%emt 0:00:18]} 56. Rc4 {[%emt 0:00:18]} Kf6 {[%emt 0:01:12]} 57. Rd4 $2 {[%emt 0:00:24]} (57. Rc7) 57... g5 $19 {[%emt 0:01:15]} 58. Rc4 {[%emt 0:00:23]} (58. Kf2 $142) 58... Kg6 $19 {[%emt 0:01:02]} 59. Rd4 {[%emt 0:00:54]} f6 {[%emt 0:00:21]} 60. Rc4 {[%emt 0:00:17]} gxf4 {[%emt 0:01:08]} 61. Rxf4 {[%emt 0:00:34]} Kg5 {[%emt 0:00:05]} 62. Re4 {[%emt 0:00:27]} e5 {[%emt 0:00:41]} 63. Kf2 {[%emt 0:00:15]} Rc3 $2 {[%emt 0:01:29]} (63... Kf5 64. Rc4 e4) 64. Kg2 $2 {[%emt 0:00:35]} (64. Re3 Rc2+ 65. Kg3) 64... Kf5 $19 {[%emt 0:00:24]} 65. Re1 {[%emt 0:00:05]} Rb3 {[%emt 0:00:23]} 0-1

[Event "Fagernes Chess GM-Swiss 2024"]
[Site "Fagernes"]
[Date "2024.03.25"]
[Round "2"]
[White "Brynell, Stellan"]
[Black "Ganguly, Surya Shekhar"]
[Result "0-1"]
[ECO "D63"]
[WhiteElo "2406"]
[BlackElo "2574"]
[Annotator "TA"]
[PlyCount "92"]
[EventDate "2024.03.25"]
[EventType "swiss"]
[EventCountry "NOR"]
[SourceTitle "playchess.com"]
[Source "ChessBase"]
[SourceQuality "1"]
[TimeControl "40/6000+30:2400+30"]

{[%evp 14,92,14,17,28,14,14,9,10,5,16,4,19,8,6,0,0,0,0,0,20,29,26,-15,-23,-6,0,0,0,-14,0,-25,0,0,0,0,27,39,71,80,73,71,77,0,-13,-7,0,0,0,-88,-24,-102,-81,-77,-76,-112,-122,-210,-209,-207,-139,-191,-200,-286,-308,-306,-310,-337,-316,-309,-334,-339,-339,-618,-531,-5575,-5065,-4727,-4718,-8191,-8191]} 1. d4 {[%emt 0:01:47]} Nf6 {[%emt 0:00:15]} 2. Nf3 {[%emt 0:00:13]} e6 {[%emt 0:00:11]} 3. c4 {[%emt 0:00:29]} d5 {[%emt 0:00:06]} 4. Nc3 {[%emt 0:00:12]} Nbd7 {[%emt 0:00:16]} 5. Bg5 {[%emt 0:01:06]} h6 {[%emt 0:00:14]} 6. Bh4 {[%emt 0:00:14]} Be7 {[%emt 0:00:08]} 7. e3 {[%emt 0:00:35]} O-O {[%emt 0:00:08]} 8. Rc1 {[%emt 0:01:14]} c5 {[%emt 0:00:24]} 9. cxd5 {[%emt 0:02:08]} (9. dxc5 {with more complications.} Nxc5 10. cxd5 g5 11. d6) 9... Nxd5 {[%emt 0:00:41]} 10. Bxe7 {[%emt 0:00:11]} Nxe7 {[%emt 0:00:05] The position is equal.} 11. Be2 {[%emt 0:03:33]} b6 {[%emt 0:06:22]} 12. O-O {[%emt 0:01:18]} Bb7 {[%emt 0:00:04]} 13. dxc5 {[%emt 0:01:52]} Nxc5 {[%emt 0:02:27]} 14. b4 {[%emt 0:00:10]} Ne4 {[%emt 0:03:01]} 15. Nxe4 {[%emt 0:01:11]} Bxe4 {[%emt 0:00:11]} 16. Qa4 {[%emt 0:00:23]} Ng6 {[%emt 0:21:56]} 17. b5 {[%emt 0:31:04]} Bd5 {[%emt 0:01:33]} 18. e4 {[%emt 0:09:32]} Nf4 {[%emt 0:01:47]} 19. Rfe1 {[%emt 0:00:07]} Bb7 {[%emt 0:00:24]} 20. Bf1 {[%emt 0:01:23]} f5 {[%emt 0:01:32]} 21. Red1 {[%emt 0:06:14]} Qf6 {[%emt 0:14:18]} 22. Qd4 {[%emt 0:10:13]} ({Don't blunder} 22. e5 $2 Nh3+ 23. Kh1 (23. gxh3 $2 Qg6+ $19) 23... Qg6 $17 (23... Nxf2+ $2 24. Kg1 $16)) 22... Bxe4 {[%emt 0:01:06]} 23. Qxf6 {[%emt 0:00:35]} gxf6 {[%emt 0:00:15]} 24. Nd4 {[%emt 0:00:31]} Rf7 {[%emt 0:18:21][%cal Of4h3] Strongly threatening ...Nh3+!} 25. f3 {[%emt 0:05:37]} Bd5 {[%emt 0:01:20]} 26. g3 {[%emt 0:01:39]} Ng6 {[%emt 0:00:50][%cal Of7d7] [#]} 27. Nxf5 $1 {[%emt 0:01:40]} Kh7 {[%emt 0:00:48] [#]} (27... Rh7 28. Bg2) 28. Rxd5 {[%emt 0:07:26]} exd5 $11 {[%emt 0:00:10]} 29. f4 {[%emt 0:00:13]} h5 {[%emt 0:10:32]} 30. Bd3 {[%emt 0:04:13] Black must now prevent Nh4.} Kh8 {[%emt 0:00:11]} 31. Kf2 {[%emt 0:10:43] [#]} (31. Rc6 $11 {keeps the balance.}) 31... Rd7 {[%emt 0:00:45]} (31... Ne5 $1 $17 {[%cal Re5d3]} 32. Be2 (32. fxe5 $2 {perishes.} fxe5 33. Rc6 e4 $19) 32... Ng4+ 33. Kg1 d4) 32. Nd4 {[%emt 0:04:24]} (32. Rc6 $11) 32... Ne7 $17 {[%emt 0:01:04]} 33. Be2 {[%emt 0:00:59]} Rc8 {[%emt 0:00:27]} 34. Rd1 {[%emt 0:00:18][%cal Oh2h4]} h4 $1 {[%emt 0:03:52]} 35. gxh4 {[%emt 0:00:33]} (35. Bg4 $17 f5 36. Be2) 35... Rc3 $19 {[%emt 0:00:58]} 36. h5 {[%emt 0:01:08]} Nc8 {[%emt 0:02:45]} 37. Bf3 {[%emt 0:02:41]} (37. Bg4 $17 {is a better defense.} Rg7 38. Bf3) 37... Nd6 {[%emt 0:01:30]} 38. Bxd5 {[%emt 0:00:42] [#]} (38. Ne2 $142 Ra3 39. Rxd5) 38... Nxb5 $1 {[%emt 0:00:55][%mdl 512]} 39. Nxb5 {[%emt 0:00:54]} Rc5 {[%emt 0:00:02][%csl LRb5,LRd5]} 40. Nxa7 {[%emt 0:00:33]} Rcxd5 {[%emt 0:00:31]} ({Don't play} 40... Rdxd5 41. Rxd5 Rxd5 42. a4) 41. Rxd5 {[%emt 0:00:34]} Rxd5 {[%emt 0:00:06] KR-KN} 42. Nc8 {[%emt 0:02:27]} b5 {[%emt 0:00:59] And now ...Rd2+ would win.} 43. Kg3 $2 {[%emt 0:06:32]} (43. Na7) 43... Rd7 {[%emt 0:06:01] aiming for ...b4. Black is clearly winning.} 44. Kg4 {[%emt 0:00:00]} b4 {[%emt 0:01:46]} 45. Kf5 {[%emt 0:00:00]} Rd2 {[%emt 0:00:22][%csl LRa2,LRh2]} 46. Kxf6 {[%emt 0:01:45]} Rxa2 {[%emt 0:00:07] Weighted Error Value: White=0.55/Black=0.12 (very precise) .  Mistake:       	White=7     	Black=1      Inaccurate:     	White=3     	Black=3      OK:         	White=9     	Black=13     Best:        	White=2     	Black=1      Strong:       	---       	Black=1      Brilliant:      	White=1     	---} 0-1

[Event "Fagernes Chess GM-Swiss 2024"]
[Site "Fagernes"]
[Date "2024.03.25"]
[Round "2"]
[White "Narva, Mai"]
[Black "Gorshtein, Ido"]
[Result "0-1"]
[ECO "B86"]
[WhiteElo "2399"]
[BlackElo "2539"]
[Annotator "TA"]
[PlyCount "102"]
[EventDate "2024.03.25"]
[EventType "swiss"]
[EventCountry "NOR"]
[SourceTitle "playchess.com"]
[Source "ChessBase"]
[SourceQuality "1"]
[TimeControl "40/6000+30:2400+30"]

{[%evp 15,102,0,20,41,35,-16,-16,-16,-22,-93,-21,-320,-299,-298,-317,-303,-268,-293,-302,-300,-218,-237,-233,-268,-244,-254,-249,-314,-311,-296,-242,-252,-256,-310,-262,-263,-256,-268,-237,-271,-274,-253,-264,-304,-270,-287,-280,-278,-293,-296,-287,-289,-297,-331,-325,-322,-327,-379,-351,-418,-392,-406,-408,-452,-464,-547,-531,-553,-497,-1006,-972,-1344,-608,-718,-780,-714,-696,-675,-675,-622,-631,-788,-726,-805,-802,-675,-640,-29975,-29976]} 1. e4 {[%emt 0:00:04]} c5 {[%emt 0:00:06]} 2. Nf3 {[%emt 0:00:16]} d6 {[%emt 0:00:04]} 3. d4 {[%emt 0:00:08]} cxd4 {[%emt 0:00:07]} 4. Nxd4 {[%emt 0:00:07]} Nf6 {[%emt 0:00:07][%cal Bg8f6,Bf6d7,Bd7c5][%mdl 32]} 5. Nc3 {[%emt 0:00:15]} a6 {[%emt 0:00:03]} 6. Bc4 {[%emt 0:00:10]} e6 {[%emt 0:00:07]} 7. Be3 {[%emt 0:00:14]} Be7 {[%emt 0:00:09]} 8. Bb3 {[%emt 0:00:20]} O-O {[%emt 0:00:53]} 9. g4 {[%emt 0:00:27]} Nfd7 {[%emt 0:00:09] [#]} 10. h4 $1 {[%emt 0:01:03]} Nc5 $1 $11 {[%emt 0:03:21][%cal Ob7b5]} 11. g5 {[%emt 0:01:35] Die Stellung ist ausgeglichen.} b5 {[%emt 0:03:39]} 12. Nd5 {[%emt 0:05:53]} Bb7 {[%emt 0:13:14]} (12... exd5 $17 13. Bxd5 Ra7) 13. Nf5 $2 {[%emt 0:16:37][%mdl 8192]} exf5 $19 {[%emt 0:05:47]} ({Schwächer ist} 13... exd5 14. Bxd5 Bxd5 15. Qxd5 $17) 14. exf5 {[%emt 0:01:27]} Nxb3 {[%emt 0:04:17]} 15. axb3 {[%emt 0:04:01]} Qd7 {[%emt 0:11:32]} 16. Rg1 {[%emt 0:30:19]} Bd8 {[%emt 0:02:17]} 17. Qd3 {[%emt 0:12:13]} Bxd5 {[%emt 0:02:28]} 18. Qxd5 {[%emt 0:00:05]} Qc6 {[%emt 0:00:42]} 19. Qd3 {[%emt 0:08:53]} Nd7 {[%emt 0:01:50][%cal Bb8d7,Bd7e5,Be5f3][%mdl 32] Und jetzt ...Ne5 wäre schön.} 20. O-O-O {[%emt 0:00:49]} Rc8 {[%emt 0:06:00]} 21. Kb1 {[%emt 0:02:45]} Ne5 {[%emt 0:02:11]} 22. Qe2 {[%emt 0:01:25]} Qf3 {[%emt 0:04:42] Wehrt Rg3 ab} 23. Qxf3 {[%emt 0:00:15]} Nxf3 {[%emt 0:00:03]} 24. Rg4 {[%emt 0:00:11]} Rc6 {[%emt 0:00:51]} 25. f6 {[%emt 0:05:57]} Bb6 {[%emt 0:06:28]} 26. Bxb6 {[%emt 0:08:56]} Rxb6 {[%emt 0:00:03]} 27. Rf4 {[%emt 0:00:31]} Ne5 {[%emt 0:00:42]} 28. fxg7 {[%emt 0:00:43]} Kxg7 {[%emt 0:00:28]} 29. Rf6 {[%emt 0:00:19]} Rd8 {[%emt 0:02:01]} 30. h5 {[%emt 0:01:06] [#]} h6 $1 {[%emt 0:08:20]} 31. Rf5 {[%emt 0:01:30]} Rh8 {[%emt 0:03:33]} ({Bloß nicht} 31... hxg5 32. Rxe5 dxe5 33. Rxd8 $17) 32. f4 {[%emt 0:01:42]} Nf3 {[%emt 0:05:13]} 33. Rd3 {[%emt 0:04:58]} Nh4 {[%emt 0:02:29]} 34. Rfd5 {[%emt 0:01:04]} hxg5 {[%emt 0:01:06]} 35. Rxg5+ {[%emt 0:00:44]} Kf6 {[%emt 0:00:19]} 36. b4 {[%emt 0:00:50]} Nf5 {[%emt 0:00:37]} 37. b3 {[%emt 0:00:27]} Ne7 {[%emt 0:01:02]} 38. Kb2 {[%emt 0:00:35]} d5 {[%emt 0:01:08]} 39. Rd4 {[%emt 0:00:27]} Re6 {[%emt 0:02:40]} 40. c4 {[%emt 0:00:32]} Re2+ {[%emt 0:00:30]} 41. Kc3 {[%emt 0:07:26]} Rh2 {[%emt 0:01:00]} 42. cxd5 {[%emt 0:06:08]} (42. Rd1 $142) 42... Nf5 {[%emt 0:00:34]} 43. Rd2 {[%emt 0:01:08]} R2xh5 {[%emt 0:00:51]} (43... Rc8+ $142 44. Kd3 Rh3+ 45. Ke2 Rcc3 (45... Rxb3 $2 46. h6 $19)) 44. Rxh5 {[%emt 0:00:56]} Rxh5 {[%emt 0:00:03][%mdl 4096] Endspiel. KRN-KR} 45. d6 {[%emt 0:00:15]} Rh8 {[%emt 0:00:02]} 46. Rd5 {[%emt 0:01:39]} Rd8 {[%emt 0:01:50]} 47. d7 {[%emt 0:00:22]} Ng7 {[%emt 0:01:33] Zielt auf ...Ne6 ab.} 48. Rd6+ {[%emt 0:05:06]} Ke7 {[%emt 0:01:24]} 49. Rxa6 {[%emt 0:00:34]} Rxd7 {[%emt 0:00:03]} 50. Rc6 {[%emt 0:01:08]} Ne6 {[%emt 0:01:54][%cal Od7c7] ...Rc7! ist eine echte Drohung.} 51. f5 {[%emt 0:00:57]} Rc7 {[%emt 0:00:07] Schwarz nahm nach der Eröffnung die Zügel in die Hand.   Gewichteter Fehlerwert: Weiß=0.68/Schwarz=0.30.  Verlustzug:     	Weiß=1     	---        Fehler:       	Weiß=3     	Schwarz=1     Ungenau:       	Weiß=1     	---        OK:         	Weiß=7     	Schwarz=16    Bester:       	Weiß=1     	Schwarz=1     Stark:        	---       	Schwarz=1} 0-1

[Event "Fagernes Chess GM-Swiss 2024"]
[Site "Fagernes"]
[Date "2024.03.25"]
[Round "2"]
[White "Audi Ameya"]
[Black "Zheng, Harry Z"]
[Result "1-0"]
[ECO "E05"]
[WhiteElo "2378"]
[BlackElo "2077"]
[Annotator "RC"]
[PlyCount "77"]
[EventDate "2024.03.25"]
[EventType "swiss"]
[EventCountry "NOR"]
[SourceTitle "playchess.com"]
[Source "ChessBase"]
[SourceQuality "1"]
[TimeControl "40/6000+30:2400+30"]

1. Nf3 {[%emt 0:00:05]} Nf6 {[%emt 0:00:29]} 2. c4 {[%emt 0:00:20]} e6 {[%emt 0:00:20]} 3. g3 {[%emt 0:00:04]} d5 {[%emt 0:01:23]} 4. Bg2 {[%emt 0:00:06]} Be7 {[%emt 0:00:11]} 5. O-O {[%emt 0:00:32]} O-O {[%emt 0:00:17]} 6. d4 {[%emt 0:00:06]} dxc4 {[%emt 0:00:28]} 7. Qc2 {[%emt 0:00:08]} a6 {[%emt 0:00:42]} 8. Qxc4 {[%emt 0:00:47]} b5 {[%emt 0:00:41]} 9. Qc2 {[%emt 0:00:12]} Bb7 {[%emt 0:00:20]} 10. Bd2 {[%emt 0:00:19]} Ra7 {[%emt 0:00:48]} 11. Rc1 {[%emt 0:01:01]} Be4 {[%emt 0:03:40]} 12. Qb3 {[%emt 0:00:15]} Nc6 {[%emt 0:01:08]} 13. e3 {[%emt 0:00:10]} Qa8 {[%emt 0:00:31]} 14. Qd1 {[%emt 0:00:17]} b4 {[%emt 0:04:54]} 15. Qf1 {[%emt 0:00:27]} Rc8 {[%emt 0:12:44]} 16. Be1 {[%emt 0:01:18]} a5 {[%emt 0:07:47]} 17. Nbd2 {[%emt 0:00:36]} Bd5 {[%emt 0:00:43]} 18. Nc4 {[%emt 0:05:16]} Qb7 {[%emt 0:10:06]} 19. Nfd2 {[%emt 0:13:47]} Nb8 {[%emt 0:09:02]} 20. a4 {[%emt 0:10:20]} bxa3 {[%emt 0:11:04]} 21. bxa3 {[%emt 0:00:05]} Bxg2 {[%emt 0:01:03]} 22. Qxg2 {[%emt 0:00:05]} a4 {[%emt 0:01:27]} 23. Nf3 {[%emt 0:06:50]} Ra6 {[%emt 0:15:51]} 24. Rab1 {[%emt 0:01:28]} Qa7 {[%emt 0:04:09]} 25. Nfe5 {[%emt 0:10:33]} Nfd7 {[%emt 0:00:30]} 26. Bb4 {[%emt 0:00:30]} c5 {[%emt 0:00:30]} 27. dxc5 {[%emt 0:00:30]} Nxc5 {[%emt 0:00:30]} 28. Nd2 {[%emt 0:00:30]} Nc6 {[%emt 0:00:30]} 29. Nxc6 {[%emt 0:00:30]} Raxc6 {[%emt 0:00:30]} 30. Rc2 {[%emt 0:00:30]} R6c7 {[%emt 0:00:30]} 31. Rbc1 {[%emt 0:00:30]} Bf8 {[%emt 0:00:30]} 32. h4 {[%emt 0:00:30]} Nd7 {[%emt 0:00:30]} 33. Rxc7 {[%emt 0:00:30]} Rxc7 {[%emt 0:00:30]} 34. Rxc7 {[%emt 0:00:30]} Qxc7 {[%emt 0:00:30]} 35. Qa8 {[%emt 0:00:30]} Qc1+ {[%emt 0:00:30]} 36. Kg2 {[%emt 0:00:30]} Qc2 {[%emt 0:00:30]} 37. Nf3 {[%emt 0:00:30]} f6 {[%emt 0:00:30]} 38. Qe8 {[%emt 0:00:30]} Qc6 {[%emt 0:00:30]} 39. Bxf8 {[%emt 0:00:30]} 1-0

[Event "Fagernes Chess GM-Swiss 2024"]
[Site "Fagernes"]
[Date "2024.03.25"]
[Round "2"]
[White "Mihajlov, Sebastian"]
[Black "Kulaots, Kaido"]
[Result "0-1"]
[ECO "B69"]
[WhiteElo "2373"]
[BlackElo "2534"]
[Annotator "TA"]
[PlyCount "84"]
[EventDate "2024.03.25"]
[EventType "swiss"]
[EventCountry "NOR"]
[SourceTitle "playchess.com"]
[Source "ChessBase"]
[SourceQuality "1"]
[TimeControl "40/6000+30:2400+30"]

{[%evp 23,84,44,60,47,37,35,58,52,95,101,88,60,78,0,0,0,0,0,0,0,0,-37,0,0,0,-34,0,-79,-78,-112,-120,-100,-119,-114,-75,-70,-65,-100,-100,-100,-97,-112,-104,-110,-110,-137,-146,-182,-37,-207,-191,-368,-357,-376,-219,-383,-383,-368,-359,-347,-320,-1924,-1755]} 1. e4 {[%emt 0:01:12]} c5 {[%emt 0:00:29]} 2. Nf3 {[%emt 0:00:38]} d6 {[%emt 0:00:43]} 3. d4 {[%emt 0:00:06]} cxd4 {[%emt 0:00:08]} 4. Nxd4 {[%emt 0:00:03]} Nf6 {[%emt 0:00:08]} 5. Nc3 {[%emt 0:00:03]} Nc6 {[%emt 0:00:33]} 6. Bg5 {[%emt 0:01:04]} e6 {[%emt 0:01:00]} 7. Qd2 {[%emt 0:00:07]} a6 {[%emt 0:00:06]} 8. O-O-O {[%emt 0:00:09]} Bd7 {[%emt 0:00:06]} 9. f4 {[%emt 0:00:05]} Be7 {[%emt 0:02:38]} 10. Nf3 {[%emt 0:00:04]} b5 {[%emt 0:01:51]} 11. Bxf6 {[%emt 0:03:37]} gxf6 {[%emt 0:00:40]} 12. f5 {[%emt 0:00:45]} Qb6 {[%emt 0:11:57]} 13. Qh6 {[%emt 0:00:16]} O-O-O {[%emt 0:05:34]} 14. Qh5 {[%emt 0:00:13]} Rdf8 {[%emt 0:21:21]} 15. Kb1 {[%emt 0:09:52] White is slightly better.} Kb7 {[%emt 0:07:59]} 16. g3 $1 {[%emt 0:22:41]} Qc5 {[%emt 0:19:56]} 17. Bh3 {[%emt 0:09:17]} Na5 {[%emt 0:10:30]} 18. Nd4 {[%emt 0:02:35]} (18. Ne2 $16) 18... b4 $11 {[%emt 0:03:07]} 19. Nce2 {[%emt 0:00:22]} e5 $1 {[%emt 0:00:27]} 20. Nb3 {[%emt 0:02:26]} Nxb3 {[%emt 0:00:45]} 21. axb3 {[%emt 0:00:46]} Bc6 {[%emt 0:10:02]} 22. Qf3 {[%emt 0:07:40]} Rc8 {[%emt 0:00:37][%cal Oc5c2] ...Qxc2+! is the strong threat.} 23. Rd2 {[%emt 0:00:03]} Bf8 {[%emt 0:02:02][%cal Be7f8,Bf8h6,Bh6e3][%mdl 32]} 24. Nc1 {[%emt 0:04:15]} h5 {[%emt 0:02:28]} 25. Bf1 {[%emt 0:04:27]} (25. Re1 $11) 25... Bh6 $17 {[%emt 0:00:55]} 26. Rg2 {[%emt 0:00:39]} Qe3 {[%emt 0:04:12] Black is more active.} 27. Qxe3 {[%emt 0:00:05]} Bxe3 {[%emt 0:00:04]} 28. Bd3 {[%emt 0:00:41] White is weak on the dark squares} d5 {[%emt 0:00:20]} 29. Re1 {[%emt 0:01:09]} d4 {[%emt 0:00:50]} 30. c3 {[%emt 0:01:47]} h4 $36 {[%emt 0:01:53][%mdl 2048] Keeping White busy.} 31. Na2 {[%emt 0:00:52]} bxc3 {[%emt 0:01:32]} 32. bxc3 {[%emt 0:00:04]} hxg3 {[%emt 0:00:09]} 33. hxg3 {[%emt 0:00:05]} a5 {[%emt 0:00:31] Prevents Nb4.} 34. b4 {[%emt 0:00:04]} Ba4 $1 {[%emt 0:01:10]} 35. bxa5 {[%emt 0:00:34]} Rc5 {[%emt 0:00:35]} (35... dxc3 $1 $19 {Strongly threatening ...Bd2.} 36. Rxe3 Rh1+ 37. Nc1 Ka8 (37... Rb8 $2 38. Bb5 $17)) 36. Nb4 $2 {[%emt 0:03:16] Now White is beyond hope.} (36. Rb2+ $15 Ka8 37. cxd4 Bxd4 38. Rb4) 36... Rxc3 $19 {[%emt 0:00:36]} ({Not} 36... Rxa5 37. Nd5 $17) 37. Bc2 {[%emt 0:00:02] Prevents Rb3+.} (37. Bf1) 37... Bxc2+ $1 {[%emt 0:00:21]} ({Worse is} 37... Bb5 38. Nd5 Rc5 (38... Ra3 39. Kb2 $11) 39. Nxe3 dxe3 40. Rxe3 $14) 38. Rxc2 {[%emt 0:00:06] [#]} Rb3+ {[%emt 0:00:37]} 39. Rb2 {[%emt 0:00:04]} Rxb2+ {[%emt 0:00:20]} 40. Kxb2 {[%emt 0:00:06] [#]} Bd2 $1 {[%emt 0:00:27][%csl LRb4,LRe1]} 41. Rb1 {[%emt 0:40:03]} Bxb4 {[%emt 0:01:26]} 42. Kc2 $2 {[%emt 0:00:00]} (42. Ka1 Ka6 43. Rxb4) 42... Rc8+ {[%emt 0:02:50] Weighted Error Value: White=0.50/Black=0.13 (very precise) .  Loses game:     	White=1     	---        Mistake:       	White=4     	Black=1      Inaccurate:     	White=5     	Black=4      OK:         	White=10    	Black=11     Best:        	White=1     	Black=6      Strong:       	White=1     	Black=4} 0-1